bitfinex-derivatives/quotes_BTCF0:USTF0_20241218
["timestamp","ask_amount","ask_price","bid_price","bid_amount"]
[1734536297219,0.0978,104380.0,104370.0,0.40883407]
[1734536297424,0.1,104400.0,104390.0,0.047909]
[1734536297621,0.1,104400.0,104390.0,0.90250993]
[1734536297920,0.1,104400.0,104390.0,0.769509]
[1734536299327,0.1,104400.0,104390.0,0.408709]
[1734536302326,0.1,104400.0,104390.0,0.54170993]
[1734536304231,0.01143733,104420.0,104410.0,0.0479]
[1734536304527,0.01,104420.0,104410.0,0.90250093]
[1734536305031,0.01,104420.0,104410.0,1.09490093]
[1734536305226,0.057895,104420.0,104410.0,0.3608]
[1734536305423,0.01,104420.0,104410.0,0.4087]
[1734536305824,0.01,104420.0,104410.0,0.90250093]
[1734536306030,0.01,104420.0,104410.0,0.73410093]
[1734536306227,0.01,104420.0,104400.0,0.3708]
[1734536306228,0.0479,104410.0,104400.0,0.3708]
[1734536306427,0.0479,104410.0,104400.0,0.01]
[1734536307119,0.54170093,104410.0,104400.0,0.01]
[1734536307428,0.64350093,104410.0,104400.0,0.018]
[1734536308934,0.64350093,104410.0,104400.0,0.011]
[1734536309526,0.64350093,104410.0,104400.0,0.01]
[1734536309919,0.7858599,104410.0,104400.0,0.01]
[1734536311522,0.7858599,104410.0,104400.0,0.057904]
[1734536311734,0.66909939,104410.0,104400.0,0.057904]
[1734536311926,0.24415897,104410.0,104400.0,0.418704]
[1734536312126,0.14235897,104410.0,104400.0,0.42859001]
[1734536312628,0.14235897,104410.0,104400.0,0.06779001]
[1734536312828,0.19025897,104410.0,104400.0,0.06779001]
[1734536313132,0.6840599,104410.0,104400.0,0.01988601]
[1734536313333,0.4087,104410.0,104400.0,0.06779001]
[1734536313930,0.4087,104410.0,104400.0,0.057904]
[1734536314232,0.55105897,104410.0,104400.0,0.057904]
[1734536314447,0.19025897,104410.0,104400.0,0.057904]
[1734536314630,0.19025897,104410.0,104400.0,0.06779001]
[1734536314830,0.19025897,104410.0,104400.0,0.01988601]
[1734536315738,0.19025897,104410.0,104400.0,0.42859001]
[1734536315739,0.14235897,104410.0,104400.0,0.42859001]
[1734536316035,0.08848765,104410.0,104400.0,0.42859001]
[1734536316538,0.08848765,104410.0,104400.0,0.51889001]
[1734536316746,0.60476684,104420.0,104410.0,0.0479]
[1734536317041,0.17972734,104420.0,104410.0,0.41858601]
[1734536317234,0.17972734,104420.0,104410.0,0.60498601]
[1734536317427,0.17972734,104420.0,104410.0,0.5951]
[1734536317830,0.01,104420.0,104410.0,0.5951]
[1734536318632,0.01,104420.0,104410.0,0.2343]
[1734536318943,0.01,104420.0,104410.0,0.60498601]
[1734536321340,0.057895,104420.0,104410.0,0.60498601]
[1734536321733,0.057895,104420.0,104410.0,0.55708601]
[1734536321934,0.057895,104420.0,104410.0,0.5472]
[1734536322639,0.057895,104420.0,104400.0,0.01988601]
[1734536322640,0.0479,104410.0,104400.0,0.01988601]
[1734536322844,0.4087,104410.0,104400.0,0.01988601]
[1734536323045,0.3608,104410.0,104400.0,0.057904]
[1734536323247,0.64549793,104420.0,104400.0,0.057904]
[1734536323437,0.3608,104410.0,104400.0,0.057904]
[1734536323936,0.3608,104410.0,104400.0,0.058904]
[1734536325041,0.4087,104410.0,104400.0,0.058904]
[1734536325237,0.4087,104410.0,104400.0,0.02989905]
[1734536326246,0.4087,104410.0,104400.0,0.07680305]
[1734536326646,0.4087,104410.0,104400.0,0.07780305]
[1734536328049,0.42533334,104410.0,104400.0,0.07780305]
[1734536328645,0.37743334,104410.0,104400.0,0.07780305]
[1734536328950,0.01,104420.0,104410.0,0.0479]
[1734536329344,0.01,104420.0,104410.0,0.4087]
[1734536329547,0.01,104420.0,104410.0,0.5056]
[1734536330750,0.01,104420.0,104410.0,0.4087]
[1734536330950,0.057895,104420.0,104410.0,0.4087]
[1734536331744,0.19089593,104420.0,104410.0,0.4087]
[1734536332146,0.0479,104410.0,104400.0,0.3511287]
[1734536332344,0.0479,104410.0,104400.0,0.38915517]
[1734536332345,0.72940093,104410.0,104400.0,0.38915517]
[1734536332541,1.02940093,104410.0,104380.0,0.05670493]
[1734536332746,0.54170993,104390.0,104380.0,0.39827223]
[1734536333348,0.047909,104390.0,104380.0,0.44618523]
[1734536333554,0.408709,104390.0,104380.0,0.44618523]
[1734536333755,0.408709,104390.0,104380.0,0.10461793]
[1734536334054,0.35482329,104390.0,104380.0,0.11450394]
[1734536334261,0.40273229,104390.0,104380.0,0.11450394]
[1734536334560,0.408709,104390.0,104380.0,0.11450394]
[1734536334854,0.047909,104390.0,104380.0,0.11850394]
[1734536335058,0.54170993,104390.0,104380.0,0.05991248]
[1734536335253,0.54170993,104390.0,104380.0,0.05002647]
[1734536335655,0.54170993,104390.0,104380.0,0.04802647]
[1734536336052,0.047909,104390.0,104380.0,0.10093947]
[1734536336352,0.49380093,104400.0,104380.0,0.062913]
[1734536336552,0.047909,104390.0,104380.0,0.062913]
[1734536337253,0.11459635,104410.0,104390.0,0.047909]
[1734536337559,0.10983749,104420.0,104390.0,0.047909]
[1734536337560,0.17392984,104420.0,104410.0,0.0479]
[1734536337752,0.0479,104410.0,104400.0,0.047903]
[1734536337946,0.0479,104410.0,104400.0,0.408703]
[1734536338145,0.61983477,104420.0,104400.0,0.047903]
[1734536338351,0.53472984,104420.0,104400.0,0.3608]
[1734536338558,0.53472984,104420.0,104410.0,0.0479]
[1734536338757,0.42013349,104420.0,104410.0,0.0479]
[1734536340253,0.05933349,104420.0,104410.0,0.0479]
[1734536340555,0.0105,104420.0,104410.0,0.4092]
[1734536341054,0.0105,104420.0,104410.0,0.5034]
[1734536342161,0.0105,104420.0,104410.0,0.4092]
[1734536342455,0.058395,104420.0,104410.0,0.3613]
[1734536342863,0.0105,104420.0,104410.0,0.4092]
[1734536343954,0.0105,104420.0,104410.0,0.41908601]
[1734536344664,0.047891,104430.0,104420.0,0.047895]
[1734536344863,0.047891,104430.0,104420.0,0.408695]
[1734536345763,0.047891,104430.0,104420.0,0.3608]
[1734536346165,0.047891,104430.0,104420.0,0.408695]
[1734536348659,0.42337312,104440.0,104420.0,0.408695]
[1734536349158,0.42337312,104440.0,104420.0,0.508695]
[1734536350357,0.06257312,104440.0,104420.0,0.508695]
[1734536350566,0.06257312,104440.0,104430.0,0.40869]
[1734536352170,0.04789,104430.0,104420.0,0.603294]
[1734536352365,0.37548512,104440.0,104420.0,0.5554]
[1734536352565,0.42337112,104440.0,104430.0,0.04789]
[1734536352770,0.06257112,104440.0,104430.0,0.40869]
[1734536353664,0.01468512,104440.0,104430.0,0.40869]
[1734536353870,0.501583,104450.0,104430.0,0.40869]
[1734536354167,0.047883,104450.0,104430.0,0.40869]
[1734536354359,0.047883,104450.0,104440.0,0.408686]
[1734536354768,0.047883,104450.0,104440.0,0.3608]
[1734536355269,0.047883,104450.0,104440.0,0.408686]
[1734536355865,0.047883,104450.0,104440.0,0.3608]
[1734536356571,0.047886,104440.0,104430.0,0.40869]
[1734536356871,0.047886,104440.0,104430.0,0.3608]
[1734536357369,0.408686,104440.0,104420.0,0.63746991]
[1734536357569,0.04789,104430.0,104420.0,0.63746991]
[1734536358266,0.04789,104430.0,104420.0,0.58957691]
[1734536359473,0.04789,104430.0,104420.0,0.22877691]
[1734536360881,0.04789,104430.0,104420.0,0.21397425]
[1734536361271,0.04789,104430.0,104420.0,0.57477425]
[1734536362178,0.04789,104430.0,104420.0,0.21397425]
[1734536362565,0.04789,104430.0,104420.0,0.57477425]
[1734536362970,0.04789,104430.0,104420.0,0.21397425]
[1734536363483,0.04789,104430.0,104420.0,0.57477425]
[1734536363677,0.04789,104430.0,104420.0,0.21397425]
[1734536363981,0.04789,104430.0,104420.0,0.57477425]
[1734536365080,0.04789,104430.0,104420.0,0.48017425]
[1734536365266,0.04789,104430.0,104420.0,0.11937425]
[1734536365472,0.40869,104430.0,104420.0,0.11937425]
[1734536366376,0.40869,104430.0,104410.0,0.00988601]
[1734536366377,0.047895,104420.0,104410.0,0.00988601]
[1734536366577,0.54074814,104420.0,104410.0,0.00988601]
[1734536366779,0.047904,104400.0,104390.0,0.9786971]
[1734536367283,0.408704,104400.0,104390.0,0.0113226]
[1734536367485,0.047904,104400.0,104390.0,0.0113226]
[1734536367679,0.5022,104410.0,104390.0,0.0113226]
[1734536367877,0.047904,104400.0,104390.0,0.0113226]
[1734536368381,0.047904,104400.0,104390.0,0.0592316]
[1734536368584,0.047904,104400.0,104390.0,0.0163226]
[1734536368788,0.047901,104410.0,104390.0,0.4250316]
[1734536368977,0.047901,104410.0,104400.0,0.408704]
[1734536369279,0.55497885,104410.0,104400.0,0.00988601]
[1734536369485,0.06212571,104410.0,104400.0,0.00988601]
[1734536369984,0.06212571,104410.0,104400.0,0.408704]
[1734536370285,0.06212571,104410.0,104400.0,0.047904]
[1734536370775,0.06212571,104410.0,104390.0,0.38674934]
[1734536370976,0.06212571,104410.0,104400.0,0.001]
[1734536371183,0.06212571,104410.0,104400.0,0.048904]
[1734536372584,0.06212571,104410.0,104400.0,0.001]
[1734536373574,0.408697,104420.0,104400.0,0.096804]
[1734536373787,0.408697,104420.0,104410.0,0.0924]
[1734536374781,0.408697,104420.0,104410.0,0.15018601]
[1734536374782,0.048897,104420.0,104410.0,0.15018601]
[1734536375182,0.001,104420.0,104410.0,0.5011]
[1734536376773,0.001,104420.0,104410.0,0.51145909]
[1734536377375,0.048895,104420.0,104410.0,0.46355909]
[1734536377582,0.54174814,104420.0,104410.0,0.10275909]
[1734536377895,0.54174814,104420.0,104410.0,0.0924]
[1734536378085,0.18094814,104420.0,104400.0,0.01035909]
[1734536378283,0.047904,104400.0,104390.0,0.52941643]
[1734536378484,0.047904,104400.0,104390.0,0.47114934]
[1734536378885,0.047904,104400.0,104390.0,0.11034934]
[1734536379086,0.408704,104400.0,104390.0,0.11034934]
[1734536379286,0.408704,104400.0,104390.0,0.11534934]
[1734536379480,0.408704,104400.0,104390.0,0.12570843]
[1734536379686,0.408704,104400.0,104390.0,0.11534934]
[1734536379890,0.54075714,104400.0,104390.0,0.11534934]
[1734536380091,0.49681045,104400.0,104390.0,0.11734934]
[1734536380389,0.49681045,104400.0,104390.0,0.00843659]
[1734536380589,0.49681045,104400.0,104390.0,0.007]
[1734536381190,0.59181045,104400.0,104390.0,0.003]
[1734536381996,0.49681045,104400.0,104390.0,0.003]
[1734536382200,0.408704,104400.0,104390.0,0.048909]
[1734536382498,0.49681045,104400.0,104390.0,0.048909]
[1734536382883,0.13601045,104400.0,104390.0,0.048909]
[1734536383087,0.08810645,104410.0,104390.0,0.409709]
[1734536383290,0.61309435,104420.0,104410.0,0.0479]
[1734536383489,0.62682599,104420.0,104410.0,0.0479]
[1734536383690,0.51222964,104420.0,104410.0,0.0479]
[1734536383893,0.42242964,104420.0,104410.0,0.0479]
[1734536384084,0.06162964,104420.0,104410.0,0.0479]
[1734536384486,0.047898,104420.0,104410.0,0.0479]
[1734536385199,0.06189418,104430.0,104410.0,0.408695]
[1734536385492,0.047895,104420.0,104410.0,0.047895]
[1734536386490,0.047895,104420.0,104410.0,0.05825409]
[1734536388394,0.37461126,104430.0,104410.0,0.41905409]
[1734536388602,0.047895,104420.0,104410.0,0.05825409]
[1734536389300,0.047895,104420.0,104410.0,0.047895]
[1734536390102,0.047895,104420.0,104410.0,0.408695]
[1734536390296,0.047895,104420.0,104410.0,0.410695]
[1734536390601,0.047893,104430.0,104420.0,0.047895]
[1734536390787,0.047893,104430.0,104420.0,0.408695]
[1734536390988,0.408688,104440.0,104420.0,0.408695]
[1734536391192,0.047888,104440.0,104430.0,0.04789]
[1734536391393,0.047888,104440.0,104430.0,0.20575909]
[1734536391596,0.047888,104440.0,104430.0,0.1954]
[1734536392399,0.047888,104440.0,104430.0,0.2004]
[1734536393301,0.047888,104440.0,104430.0,0.2024]
[1734536394202,0.047888,104440.0,104430.0,0.25029]
[1734536394403,0.047888,104440.0,104430.0,0.2024]
[1734536394604,0.408688,104440.0,104430.0,0.2024]
[1734536394803,0.54077941,104440.0,104430.0,0.002]
[1734536395105,0.54077941,104440.0,104430.0,0.003]
[1734536395303,0.84077941,104440.0,104430.0,0.001]
[1734536395505,0.047895,104420.0,104410.0,0.145399]
[1734536395808,0.408695,104420.0,104410.0,0.145399]
[1734536396897,0.408695,104420.0,104400.0,0.00143658]
[1734536396898,0.0479,104410.0,104400.0,0.00143658]
[1734536397103,0.0479,104410.0,104400.0,0.04934058]
[1734536397500,0.0479,104410.0,104400.0,0.00143658]
[1734536397804,0.54079141,104410.0,104400.0,0.00143658]
[1734536398601,0.54079141,104410.0,104400.0,0.01443658]
[1734536398996,0.54079141,104410.0,104400.0,0.00543658]
[1734536399305,0.44665494,104420.0,104400.0,0.04934058]
[1734536399600,0.49455194,104420.0,104410.0,0.0479]
[1734536399999,0.408697,104420.0,104410.0,0.0479]
[1734536401097,0.0479,104410.0,104400.0,0.50393958]
[1734536401295,0.0479,104410.0,104400.0,0.41013958]
[1734536403010,0.047897,104420.0,104400.0,0.41013658]
[1734536403203,0.047897,104420.0,104410.0,0.4087]
[1734536403403,0.047897,104420.0,104400.0,0.41213858]
[1734536403606,0.047897,104420.0,104410.0,0.4087]
[1734536404105,0.047897,104420.0,104410.0,0.0479]
[1734536404306,0.01363965,104430.0,104420.0,0.047895]
[1734536404498,0.24833729,104440.0,104420.0,0.5463]
[1734536404697,0.04789,104430.0,104420.0,0.594193]
[1734536404903,0.13589982,104440.0,104420.0,0.594191]
[1734536405105,0.64926311,104450.0,104430.0,0.3608]
[1734536405304,0.33634711,104450.0,104440.0,0.047886]
[1734536405609,0.33634711,104450.0,104430.0,0.408688]
[1734536405806,0.047886,104440.0,104430.0,0.047888]
[1734536406307,0.047886,104440.0,104430.0,0.408688]
[1734536407304,0.047886,104440.0,104430.0,0.047888]
[1734536407511,0.047886,104440.0,104430.0,0.3608]
[1734536408398,0.047886,104440.0,104430.0,0.40869]
[1734536408598,0.047886,104440.0,104430.0,0.04789]
[1734536410202,0.14538087,104450.0,104430.0,0.40869]
[1734536410400,0.047883,104450.0,104440.0,0.047886]
[1734536410799,0.047883,104450.0,104440.0,0.408686]
[1734536411002,0.047883,104450.0,104440.0,0.047886]
[1734536411302,0.29420673,104460.0,104440.0,0.3608]
[1734536411303,0.11445142,104460.0,104440.0,0.3608]
[1734536411509,0.16232942,104460.0,104440.0,0.40876553]
[1734536412707,0.21021042,104460.0,104440.0,0.40876553]
[1734536412906,0.047881,104450.0,104440.0,0.04796553]
[1734536413308,0.047881,104450.0,104440.0,0.40876553]
[1734536414115,0.047881,104450.0,104440.0,0.36088153]
[1734536414914,0.047881,104450.0,104440.0,0.04796753]
[1734536415913,0.047881,104450.0,104440.0,0.40876753]
[1734536416303,0.05038473,104460.0,104440.0,0.40876753]
[1734536416504,0.05038473,104460.0,104450.0,0.0934]
[1734536417914,0.05038473,104460.0,104450.0,0.141281]
[1734536418112,0.05038473,104460.0,104450.0,0.0934]
[1734536418311,0.54321403,104460.0,104450.0,0.0934]
[1734536418717,0.05038473,104460.0,104450.0,0.141281]
[1734536418909,0.04931473,104460.0,104450.0,0.141281]
[1734536421222,0.04931473,104460.0,104450.0,0.0934]
[1734536421517,0.54214403,104460.0,104450.0,0.0934]
[1734536422018,0.047881,104450.0,104440.0,8.153e-05]
[1734536422617,0.408681,104450.0,104440.0,8.153e-05]
[1734536424424,0.408681,104450.0,104440.0,0.04796753]
[1734536425214,0.047881,104450.0,104440.0,0.40876753]
[1734536428613,0.00143673,104460.0,104440.0,0.40876753]
[1734536428821,0.047881,104450.0,104440.0,0.40876753]
[1734536429616,0.04931373,104460.0,104450.0,0.047881]
[1734536429813,0.1586388,104470.0,104450.0,0.408681]
[1734536430005,0.1586388,104470.0,104450.0,0.4605]
[1734536430205,0.13372994,104470.0,104460.0,0.408677]
[1734536430410,0.13372994,104470.0,104460.0,0.503977]
[1734536430818,0.13372994,104470.0,104460.0,0.4561]
[1734536431509,0.047875,104470.0,104460.0,0.4561]
[1734536431713,0.047875,104470.0,104460.0,0.503977]
[1734536431918,0.047875,104470.0,104460.0,0.4561]
[1734536432306,0.047875,104470.0,104460.0,0.0953]
[1734536434017,0.047875,104470.0,104460.0,0.46645909]
[1734536434321,0.047875,104470.0,104460.0,0.4561]
[1734536434525,0.047875,104470.0,104460.0,0.46645909]
[1734536434821,0.047875,104470.0,104460.0,0.47910851]
[1734536435024,0.047875,104470.0,104460.0,0.4561]
[1734536435221,0.88466908,104470.0,104440.0,8.153e-05]
[1734536435530,0.18429704,104460.0,104440.0,0.36088153]
[1734536435716,0.047881,104450.0,104440.0,0.40876553]
[1734536435917,0.047881,104450.0,104440.0,0.04796553]
[1734536436225,0.13587804,104450.0,104440.0,8.153e-05]
[1734536436527,0.047881,104450.0,104440.0,8.153e-05]
[1734536437225,0.49667804,104450.0,104440.0,8.153e-05]
[1734536437425,0.408681,104450.0,104440.0,8.153e-05]
[1734536437725,0.13373394,104460.0,104450.0,0.047881]
[1734536437939,0.13373394,104460.0,104450.0,0.231781]
[1734536438127,0.08585494,104460.0,104450.0,0.231781]
[1734536438424,0.13587104,104470.0,104450.0,0.592581]
[1734536438623,0.13587104,104470.0,104460.0,0.047877]
[1734536438816,0.047877,104460.0,104450.0,0.60293809]
[1734536439620,0.047377,104460.0,104450.0,0.592579]
[1734536439820,0.13587204,104470.0,104460.0,0.047877]
[1734536440023,0.047875,104470.0,104460.0,0.408677]
[1734536440228,0.047875,104470.0,104460.0,0.047877]
[1734536440430,0.6043477,104480.0,104460.0,0.3608]
[1734536440727,0.6043477,104480.0,104460.0,0.41903309]
[1734536441127,0.69234474,104480.0,104460.0,0.41903309]
[1734536441430,0.047872,104470.0,104460.0,0.41903309]
[1734536443734,0.047872,104470.0,104460.0,0.408674]
[1734536444525,0.2435477,104480.0,104460.0,0.408672]
[1734536444719,0.13516136,104480.0,104470.0,0.047872]
[1734536445724,0.04930642,104480.0,104470.0,0.047872]
[1734536447132,0.04930642,104480.0,104460.0,0.42078872]
[1734536447435,0.047872,104470.0,104460.0,0.42078872]
[1734536450832,0.00143642,104480.0,104460.0,0.42078872]
[1734536451031,0.047868,104480.0,104470.0,0.49666904]
[1734536451228,0.047868,104480.0,104470.0,0.408672]
[1734536451431,0.047868,104480.0,104460.0,0.42078772]
[1734536451927,0.047868,104480.0,104460.0,0.50878476]
[1734536452229,0.047872,104470.0,104460.0,0.37291372]
[1734536452729,0.047872,104470.0,104460.0,0.38328373]
[1734536452959,0.047872,104470.0,104460.0,0.37291372]
[1734536454925,0.047872,104470.0,104460.0,0.01211372]
[1734536455136,0.047877,104460.0,104450.0,0.56738495]
[1734536455335,0.047877,104460.0,104450.0,0.19427001]
[1734536455540,0.047877,104460.0,104450.0,0.1839]
[1734536455832,0.047881,104450.0,104440.0,8.153e-05]
[1734536456036,0.49667804,104450.0,104440.0,8.153e-05]
[1734536456332,0.04788,104460.0,104440.0,0.49676057]
[1734536456537,0.047881,104460.0,104440.0,0.49676057]
[1734536456722,0.684472,104470.0,104440.0,0.40876353]
[1734536456923,0.047878,104460.0,104450.0,0.04788]
[1734536457126,0.047878,104460.0,104450.0,0.05825001]
[1734536457929,0.047878,104460.0,104450.0,0.01037001]
[1734536458639,0.13587504,104460.0,104450.0,0.01037001]
[1734536458840,0.047881,104450.0,104440.0,0.41913554]
[1734536459042,0.13587504,104460.0,104440.0,0.41913554]
[1734536459335,0.49667504,104460.0,104440.0,0.41913554]
[1734536459637,0.047881,104450.0,104440.0,0.37125154]
[1734536459839,0.047881,104450.0,104440.0,0.01045154]
[1734536460326,0.047881,104450.0,104440.0,0.05833754]
[1734536460724,0.047881,104450.0,104440.0,0.41913754]
[1734536461129,0.047881,104450.0,104440.0,0.37125154]
[1734536461434,0.048381,104450.0,104440.0,0.41963754]
[1734536461636,0.0005,104450.0,104440.0,0.40926753]
[1734536461935,0.0005,104450.0,104440.0,0.49736753]
[1734536462534,0.048381,104450.0,104440.0,0.49736753]
[1734536462731,0.08585494,104470.0,104460.0,0.047877]
[1734536462923,0.25759791,104480.0,104470.0,0.047872]
[1734536462924,0.20045129,104480.0,104470.0,0.047872]
[1734536463127,0.20045129,104480.0,104470.0,0.500272]
[1734536464234,0.01,104490.0,104470.0,0.500272]
[1734536464438,0.01,104490.0,104480.0,0.047868]
[1734536464641,0.02181625,104490.0,104480.0,0.047868]
[1734536464831,0.01,104490.0,104480.0,0.047868]
[1734536465031,0.01,104490.0,104480.0,0.136168]
[1734536465228,0.01,104490.0,104480.0,0.496968]
[1734536465832,0.01,104490.0,104480.0,0.586568]
[1734536466728,0.057863,104490.0,104480.0,0.5387]
[1734536467533,0.01,104490.0,104480.0,0.5387]
[1734536467740,0.057863,104490.0,104480.0,0.5387]
[1734536468331,0.057863,104490.0,104480.0,0.1779]
[1734536468936,0.50666004,104490.0,104480.0,0.0896]
[1734536469136,0.50666004,104490.0,104470.0,0.01156346]
[1734536469342,0.408668,104480.0,104470.0,0.0035011]
[1734536469644,0.047868,104480.0,104470.0,0.0035011]
[1734536469939,0.01796002,104480.0,104470.0,0.0513731]
[1734536470144,0.41606004,104490.0,104470.0,0.0035011]
[1734536470338,0.047872,104470.0,104460.0,0.68322716]
[1734536472641,0.047869,104480.0,104460.0,0.7722242]
[1734536472837,0.047869,104480.0,104470.0,0.3608]
[1734536473539,0.047869,104480.0,104470.0,0.408672]
[1734536474249,0.01,104490.0,104470.0,0.408672]
[1734536474542,0.057866,104490.0,104470.0,0.408672]
[1734536474939,0.057866,104490.0,104470.0,0.49666904]
[1734536475552,0.057866,104490.0,104470.0,0.408672]
[1734536475845,0.01,104490.0,104470.0,0.408672]
[1734536476048,0.047868,104480.0,104470.0,0.408672]
[1734536477142,0.047868,104480.0,104470.0,0.3608]
[1734536478140,0.057863,104490.0,104470.0,0.3608]
[1734536478141,0.057864,104490.0,104470.0,0.44879704]
[1734536478440,0.057864,104490.0,104480.0,0.047868]
[1734536479951,0.047872,104480.0,104460.0,0.66474749]
[1734536480252,0.047872,104470.0,104460.0,0.56387748]
[1734536481344,0.047872,104470.0,104460.0,0.61175448]
[1734536482653,0.047872,104470.0,104460.0,0.61275448]
[1734536483553,0.047869,104480.0,104460.0,0.61275448]
[1734536484451,0.05894209,104480.0,104460.0,0.61275448]
[1734536484852,0.047872,104470.0,104460.0,0.61275448]
[1734536485246,0.047872,104470.0,104460.0,0.62312449]
[1734536485647,0.50773913,104480.0,104460.0,0.62312449]
[1734536486052,0.047872,104470.0,104460.0,0.26232449]
[1734536486258,0.59676004,104490.0,104460.0,0.57524749]
[1734536486555,0.047869,104480.0,104470.0,0.047872]
[1734536486755,0.047869,104480.0,104460.0,0.62212149]
[1734536487850,0.047872,104470.0,104460.0,0.62212149]
[1734536488252,0.13586904,104470.0,104460.0,0.62212149]
[1734536488454,0.13586904,104470.0,104460.0,0.21344749]
[1734536488651,0.13586904,104470.0,104460.0,0.57424749]
[1734536488858,0.047872,104470.0,104460.0,0.57424749]
[1734536489456,0.047872,104470.0,104460.0,0.62212449]
[1734536489658,0.047872,104470.0,104460.0,0.57524749]
[1734536489860,0.13586904,104470.0,104460.0,0.56487748]
[1734536490254,0.13586904,104470.0,104460.0,0.55302632]
[1734536490474,0.49666904,104470.0,104460.0,0.001]
[1734536491168,0.13586904,104470.0,104460.0,0.048877]
[1734536491858,0.13586904,104470.0,104460.0,0.001]
[1734536492557,0.047872,104470.0,104460.0,0.001]
[1734536494069,0.047872,104470.0,104460.0,0.01137001]
[1734536494565,0.13586904,104470.0,104460.0,0.01137001]
[1734536494866,0.13586904,104470.0,104460.0,0.001]
[1734536495466,0.49666904,104470.0,104460.0,0.001]
[1734536496164,0.49666904,104470.0,104450.0,0.52797401]
[1734536496460,0.047877,104460.0,104450.0,0.52797401]
[1734536496961,0.13587404,104460.0,104450.0,0.48009301]
[1734536497158,0.49667404,104460.0,104450.0,0.11929301]
[1734536497354,0.13587404,104460.0,104450.0,0.11929301]
[1734536497765,0.082026,104460.0,104450.0,0.12966302]
[1734536497958,0.129903,104460.0,104450.0,0.13066302]
[1734536498357,0.490703,104460.0,104450.0,0.01221537]
[1734536498564,0.57870004,104460.0,104450.0,0.001]
[1734536498764,0.58207404,104460.0,104450.0,0.001]
[1734536499562,0.047881,104450.0,104440.0,0.43910153]
[1734536499863,0.13587804,104450.0,104440.0,0.46963905]
[1734536500071,0.13587804,104450.0,104440.0,0.43202505]
[1734536500257,0.13587804,104450.0,104440.0,0.37255754]
[1734536500258,0.49667804,104450.0,104440.0,0.37255754]
[1734536500463,0.49667804,104450.0,104440.0,0.01903754]
[1734536500663,0.49667804,104450.0,104440.0,0.00108153]
[1734536500870,0.79667804,104450.0,104440.0,0.00108153]
[1734536501063,0.047886,104440.0,104410.0,0.51095591]
[1734536501263,0.408695,104420.0,104400.0,1.08118958]
[1734536501472,0.67849704,104410.0,104400.0,1.08118958]
[1734536501969,0.76649408,104410.0,104400.0,1.08118958]
[1734536502177,1.06657561,104410.0,104400.0,1.08118958]
[1734536502477,0.047909,104390.0,104380.0,0.01010024]
[1734536502661,0.047909,104390.0,104380.0,0.37090024]
[1734536502662,0.13590604,104390.0,104380.0,0.37090024]
[1734536502975,8.153e-05,104410.0,104400.0,0.047904]
[1734536503177,0.13597857,104410.0,104400.0,0.227204]
[1734536503364,0.13597857,104410.0,104400.0,0.0917]
[1734536503676,0.49677857,104410.0,104400.0,0.0917]
[1734536504268,0.49677857,104410.0,104400.0,0.139604]
[1734536504678,0.13597857,104410.0,104400.0,0.139604]
[1734536505768,0.13597857,104410.0,104400.0,0.140604]
[1734536506077,0.04798153,104410.0,104400.0,0.140604]
[1734536507072,0.40878153,104410.0,104400.0,0.0927]
[1734536507282,0.49677857,104410.0,104400.0,0.001]
[1734536507777,0.40878153,104410.0,104400.0,0.001]
[1734536508571,0.40978153,104410.0,104400.0,0.001]
[1734536508978,0.40978153,104410.0,104390.0,0.41997053]
[1734536509178,0.047904,104400.0,104390.0,0.41997053]
[1734536510276,0.047904,104400.0,104390.0,0.42097053]
[1734536510780,0.047904,104400.0,104390.0,0.3658]
[1734536511083,0.047904,104400.0,104390.0,0.005]
[1734536511273,0.13590104,104400.0,104390.0,0.005]
[1734536511469,0.047904,104400.0,104390.0,0.007]
[1734536511674,0.047909,104390.0,104380.0,0.01010024]
[1734536511869,0.67470604,104390.0,104380.0,0.01010024]
[1734536512169,0.97470604,104390.0,104380.0,0.01010024]
[1734536512878,0.97470604,104390.0,104380.0,0.02210024]
[1734536513384,0.97470604,104390.0,104360.0,0.09383707]
[1734536513586,0.49671504,104370.0,104360.0,0.09383707]
[1734536514086,0.49671504,104370.0,104360.0,0.00143707]
[1734536514773,0.047927,104350.0,104340.0,0.4088541]
[1734536515683,0.04935281,104380.0,104350.0,0.047927]
[1734536515988,0.04935281,104380.0,104360.0,0.500319]
[1734536515989,0.001,104370.0,104360.0,0.500319]
[1734536516174,0.00143781,104380.0,104370.0,0.047918]
[1734536516371,0.60915829,104400.0,104380.0,0.047909]
[1734536516574,0.60915829,104400.0,104380.0,0.49670604]
[1734536516780,0.047909,104390.0,104380.0,0.408709]
[1734536518080,0.047909,104390.0,104380.0,0.49670604]
[1734536518281,0.047906,104400.0,104380.0,0.409709]
[1734536518480,0.047906,104400.0,104390.0,0.3608]
[1734536518784,0.05915948,104400.0,104390.0,0.3608]
[1734536519386,0.047906,104400.0,104390.0,0.408709]
[1734536520682,0.047906,104400.0,104390.0,0.3608]
[1734536521980,0.047906,104400.0,104390.0,0.37224895]
[1734536522380,0.047906,104400.0,104390.0,0.42015795]
[1734536523086,0.047906,104400.0,104390.0,0.3608]
[1734536524685,0.047906,104400.0,104390.0,0.4459]
[1734536524910,0.047906,104400.0,104390.0,0.5358]
[1734536525186,0.047906,104400.0,104390.0,0.0851]
[1734536525392,0.408706,104400.0,104390.0,0.0851]
[1734536525590,0.047906,104400.0,104390.0,0.4459]
[1734536525888,0.047906,104400.0,104390.0,0.493809]
[1734536526084,0.047906,104400.0,104390.0,0.0851]
[1734536526283,0.047909,104390.0,104380.0,0.46220808]
[1734536526988,0.047909,104390.0,104380.0,0.0904]
[1734536527194,0.408709,104390.0,104380.0,0.0904]
[1734536527496,0.54084509,104390.0,104380.0,0.001]
[1734536527694,0.54084509,104390.0,104380.0,0.005]
[1734536528012,0.408709,104390.0,104380.0,0.005]
[1734536528206,0.49456394,104390.0,104380.0,0.005]
[1734536528402,0.62670003,104390.0,104380.0,0.005]
[1734536528604,0.62620003,104390.0,104380.0,0.005]
[1734536529114,0.65494144,104390.0,104380.0,0.005]
[1734536529311,0.95494144,104390.0,104380.0,0.005]